bitfinex/quotes_BTCUSD_20250213
["timestamp","ask_amount","ask_price","bid_price","bid_amount"]
[1739463734514,0.18665821,95729.0,95728.0,0.10316864]
[1739463734717,0.18665821,95729.0,95728.0,0.00266499]
[1739463735708,0.19811944,95729.0,95728.0,0.00266499]
[1739463735885,0.36742787,95729.0,95728.0,0.0024465]
[1739463736079,0.41322787,95729.0,95728.0,0.0024465]
[1739463736308,0.42931596,95729.0,95728.0,0.0024465]
[1739463736643,0.208952,95716.0,95707.0,0.023]
[1739463736763,0.11116273,95729.0,95708.0,0.18589823]
[1739463736961,0.15,95726.0,95708.0,0.18589823]
[1739463737161,0.15,95726.0,95708.0,0.34262423]
[1739463737406,0.156716,95715.0,95709.0,0.156724]
[1739463737611,0.02996621,95725.0,95710.0,0.10250365]
[1739463737801,0.208934,95724.0,95711.0,0.156721]
[1739463737995,0.00486378,95724.0,95712.0,0.10250365]
[1739463738196,0.156714,95716.0,95712.0,0.10250365]
[1739463738400,0.156728,95707.0,95706.0,4.411e-05]
[1739463738598,0.156728,95707.0,95706.0,0.10254776]
[1739463738825,0.00486378,95707.0,95706.0,0.10254776]
[1739463739325,0.17124656,95707.0,95706.0,0.10254776]
[1739463739904,0.17124656,95707.0,95706.0,0.00504411]
[1739463740374,0.18669018,95707.0,95706.0,0.00504411]
[1739463740548,0.18669018,95707.0,95706.0,0.00904411]
[1739463742254,0.17124656,95707.0,95706.0,0.00904411]
[1739463742433,0.01451856,95707.0,95706.0,0.00904411]
[1739463742791,0.17124656,95707.0,95706.0,0.00904411]
[1739463744482,0.18669018,95707.0,95706.0,0.00904411]
[1739463745315,0.19805266,95707.0,95706.0,0.00904411]
[1739463745523,0.27585266,95707.0,95706.0,0.00904411]
[1739463746128,0.27585266,95707.0,95706.0,0.00404411]
[1739463746382,0.27585266,95707.0,95706.0,0.00304411]
[1739463746990,0.47505266,95707.0,95706.0,4.411e-05]
[1739463747804,0.494385,95707.0,95706.0,4.411e-05]
[1739463749032,0.306748,95695.0,95694.0,6.008e-05]
[1739463749394,0.31162,95695.0,95694.0,6.008e-05]
[1739463750217,0.31162,95695.0,95694.0,0.00106008]
[1739463750432,0.33095234,95695.0,95694.0,0.00106008]
[1739463750631,0.35180279,95695.0,95694.0,0.00106008]
[1739463750804,0.37690119,95695.0,95694.0,0.00106008]
[1739463751257,0.37690119,95695.0,95694.0,0.00206008]
[1739463752269,0.156762,95686.0,95685.0,0.00022365]
[1739463752760,0.16151941,95686.0,95685.0,0.00022365]
[1739463753182,0.18085175,95686.0,95685.0,0.00022365]
[1739463753415,0.02408975,95686.0,95685.0,0.2594913]
[1739463753627,0.02408975,95686.0,95685.0,0.2824913]
[1739463753832,0.01933234,95686.0,95685.0,0.2824913]
[1739463754034,0.02898712,95686.0,95685.0,0.2824913]
[1739463754254,0.02898712,95686.0,95685.0,0.2834913]
[1739463754670,0.00965478,95686.0,95685.0,0.2834913]
[1739463754844,0.00965478,95686.0,95685.0,0.2844913]
[1739463755066,0.01547173,95704.0,95697.0,0.156743]
[1739463755269,0.01547173,95704.0,95698.0,0.10250365]
[1739463755602,0.16149277,95703.0,95698.0,0.10250365]
[1739463756082,0.156741,95699.0,95698.0,0.10250365]
[1739463756255,0.02513888,95702.0,95685.0,0.15698565]
[1739463756455,0.208984,95701.0,95698.0,0.003]
[1739463756668,0.156741,95699.0,95698.0,0.003]
[1739463757222,0.18667079,95699.0,95698.0,0.006]
[1739463757995,0.156746,95697.0,95690.0,0.156756]
[1739463758200,0.156747,95696.0,95690.0,0.10250365]
[1739463758395,0.00966715,95695.0,95690.0,0.10250365]
[1739463758596,0.156754,95691.0,95690.0,0.10250365]
[1739463759152,0.16154627,95691.0,95690.0,0.10550365]
[1739463759527,0.00479227,95691.0,95690.0,0.10550365]
[1739463759666,0.156751,95693.0,95690.0,0.10250365]
[1739463759868,0.00966715,95691.0,95690.0,0.027]
[1739463760080,0.00966715,95691.0,95690.0,0.28625965]
[1739463760554,0.00966715,95691.0,95690.0,0.12950365]
[1739463760766,0.156754,95691.0,95690.0,0.12950365]
[1739463760967,0.16153901,95691.0,95690.0,0.12950365]
[1739463761180,0.16153901,95691.0,95690.0,0.10250365]
[1739463761383,0.16153901,95691.0,95690.0,0.10550365]
[1739463761996,0.00478501,95691.0,95690.0,0.10250365]
[1739463762195,0.16153901,95691.0,95690.0,0.10450365]
[1739463762395,0.156751,95693.0,95690.0,0.10450365]
[1739463762593,0.00480874,95691.0,95690.0,0.10650365]
[1739463762868,0.156754,95691.0,95690.0,0.10250365]
[1739463763095,0.18672338,95691.0,95690.0,0.10450365]
[1739463763222,0.18672338,95691.0,95690.0,0.10550365]
[1739463764256,0.02996938,95691.0,95690.0,0.10550365]
[1739463764435,0.18672338,95691.0,95690.0,0.10550365]
[1739463764890,0.02996938,95691.0,95690.0,0.10550365]
[1739463765261,0.18672338,95691.0,95690.0,0.10550365]
[1739463770200,0.18672338,95691.0,95690.0,0.003]
[1739463773452,0.18672338,95691.0,95690.0,0.0031066]
[1739463774828,0.02996938,95691.0,95690.0,0.1598626]
[1739463775237,0.02516064,95691.0,95690.0,0.0031066]
[1739463775637,0.02995983,95691.0,95690.0,0.0031066]
[1739463775829,0.18671383,95691.0,95690.0,0.0031066]
[1739463778431,0.17123036,95691.0,95690.0,0.0031066]
[1739463779299,0.01447636,95691.0,95690.0,0.0031066]
[1739463779714,0.17123036,95691.0,95690.0,0.0031066]
[1739463780119,0.18671383,95691.0,95690.0,0.0031066]
[1739463781929,0.26481383,95691.0,95690.0,0.0031066]
[1739463782989,0.26481383,95691.0,95690.0,0.0021066]
[1739463783401,0.26581383,95691.0,95690.0,0.0001066]
[1739463783860,0.26681383,95691.0,95690.0,0.0001066]
[1739463784063,0.26581383,95691.0,95690.0,0.0001066]
[1739463784307,0.03095983,95691.0,95690.0,0.0001066]
[1739463784707,0.18871383,95691.0,95690.0,0.0001066]
[1739463785201,0.18771383,95691.0,95690.0,0.0001066]
[1739463785852,0.2001284,95693.0,95690.0,0.0001066]
[1739463786063,0.16107327,95691.0,95690.0,0.0001066]
[1739463786404,0.16107327,95691.0,95690.0,0.0021066]
[1739463786558,0.16107327,95691.0,95690.0,0.0001066]
[1739463786742,0.00431927,95691.0,95690.0,0.1568626]
[1739463786943,0.00022387,95694.0,95690.0,0.0001066]
[1739463787150,0.156754,95691.0,95690.0,0.0021066]
[1739463787566,0.16107327,95691.0,95690.0,0.0031066]
[1739463787769,0.16215308,95691.0,95690.0,0.0001066]
[1739463787980,0.16215308,95691.0,95690.0,0.0031066]
[1739463788178,0.094312,95693.0,95690.0,0.0031066]
[1739463788373,0.16305293,95691.0,95690.0,0.0001066]
[1739463788576,0.00022387,95694.0,95690.0,0.0001066]
[1739463788781,0.0062899,95691.0,95690.0,0.0001066]
[1739463789028,0.156754,95691.0,95690.0,0.0001066]
[1739463789160,0.156754,95691.0,95690.0,0.0021066]
[1739463789360,0.1630439,95691.0,95690.0,0.0001066]
[1739463789803,0.1630439,95691.0,95690.0,0.0031066]
[1739463790122,0.1630439,95691.0,95690.0,0.0011066]
[1739463790361,0.1630439,95691.0,95690.0,0.0001066]
[1739463790535,0.1640439,95691.0,95690.0,0.0001066]
[1739463790811,0.1630439,95691.0,95690.0,0.0001066]
[1739463791246,0.1640439,95691.0,95690.0,0.0001066]
[1739463791622,0.2437439,95691.0,95690.0,0.0011066]
[1739463791825,0.4395439,95691.0,95690.0,0.0011066]
[1739463792874,0.4395439,95691.0,95690.0,0.0001066]
[1739463793085,0.4415439,95691.0,95690.0,0.0001066]
[1739463794335,0.4405439,95691.0,95690.0,0.0001066]
[1739463794578,0.4415439,95691.0,95690.0,0.0001066]
[1739463795937,0.4405439,95691.0,95690.0,0.0001066]
[1739463796255,0.45605436,95691.0,95690.0,0.0001066]
[1739463796592,0.45705436,95691.0,95690.0,0.0001066]
[1739463796787,0.45605436,95691.0,95690.0,0.0001066]
[1739463797219,0.45705436,95691.0,95690.0,0.0001066]
[1739463798996,0.306762,95686.0,95685.0,0.00022365]
[1739463799428,0.31297328,95686.0,95685.0,0.00022365]
[1739463800240,0.3381694,95686.0,95685.0,0.00222365]
[1739463802041,0.3381694,95686.0,95685.0,0.00122365]
[1739463802262,0.4131694,95686.0,95685.0,0.00122365]
[1739463803002,0.51867305,95686.0,95685.0,0.00022365]
[1739463803153,0.52267305,95686.0,95685.0,0.00022365]
[1739463803349,0.52567305,95686.0,95685.0,0.00022365]
[1739463803557,0.51967305,95686.0,95685.0,0.00022365]
[1739463803753,0.51567305,95686.0,95685.0,0.00022365]
[1739463803955,0.52967305,95686.0,95685.0,0.00122365]
[1739463804182,0.52967305,95686.0,95685.0,0.00022365]
[1739463804343,0.4271694,95686.0,95685.0,0.00022365]
[1739463805188,0.4201694,95686.0,95685.0,0.00022365]
[1739463805613,0.4271694,95686.0,95685.0,0.00122365]
[1739463805770,0.4341694,95686.0,95685.0,0.00122365]
[1739463805974,0.4271694,95686.0,95685.0,0.00122365]
[1739463806181,0.4341694,95686.0,95685.0,0.00222365]
[1739463806595,0.4271694,95686.0,95685.0,0.00222365]
[1739463806799,0.4341694,95686.0,95685.0,0.00222365]
[1739463807179,0.4201694,95686.0,95685.0,0.00022365]
[1739463807388,0.4261694,95686.0,95685.0,0.00122365]
[1739463807593,0.52867305,95686.0,95685.0,0.00022365]
[1739463807796,0.52867305,95686.0,95685.0,6.5e-07]
[1739463808815,0.52867305,95686.0,95685.0,0.00100065]
[1739463809022,0.52767305,95686.0,95685.0,0.00100065]
[1739463809223,0.52167305,95686.0,95685.0,6.5e-07]
[1739463809508,0.52867305,95686.0,95685.0,6.5e-07]
[1739463809920,0.52167305,95686.0,95685.0,6.5e-07]
[1739463810119,0.52767305,95686.0,95685.0,0.00100065]
[1739463810330,0.54567305,95686.0,95685.0,6.5e-07]
[1739463810666,0.54567305,95686.0,95685.0,0.00100065]
[1739463810867,0.55267305,95686.0,95685.0,0.00100065]
[1739463811106,0.4501694,95686.0,95685.0,0.00100065]
[1739463812072,0.4431694,95686.0,95685.0,6.5e-07]
[1739463812203,0.4361694,95686.0,95685.0,6.5e-07]
[1739463812404,0.4411694,95686.0,95685.0,6.5e-07]
[1739463812604,0.4431694,95686.0,95685.0,6.5e-07]
[1739463813016,0.4421694,95686.0,95685.0,6.5e-07]
[1739463813215,0.3441694,95686.0,95685.0,6.5e-07]
[1739463813419,0.3511694,95686.0,95685.0,6.5e-07]
[1739463813990,0.3381694,95686.0,95685.0,6.5e-07]
[1739463814133,0.3731694,95686.0,95685.0,6.5e-07]
[1739463815417,0.3611694,95686.0,95685.0,6.5e-07]
[1739463815599,0.3631694,95686.0,95685.0,6.5e-07]
[1739463815811,0.3681694,95686.0,95685.0,6.5e-07]
[1739463816005,0.3661694,95686.0,95685.0,6.5e-07]
[1739463816243,0.3671694,95686.0,95685.0,6.5e-07]
[1739463816445,0.2241694,95686.0,95685.0,6.5e-07]
[1739463816772,0.18565894,95686.0,95685.0,6.5e-07]
[1739463816991,0.17265894,95686.0,95685.0,6.5e-07]
[1739463817377,0.02089694,95686.0,95685.0,6.5e-07]
[1739463817590,0.17765894,95686.0,95685.0,6.5e-07]
[1739463817815,0.02089694,95686.0,95685.0,6.5e-07]
[1739463818002,0.02089694,95686.0,95685.0,0.15676465]
[1739463818343,0.01468566,95686.0,95685.0,6.5e-07]
[1739463818553,0.01468566,95686.0,95685.0,0.15676465]
[1739463818554,0.02076359,95686.0,95685.0,0.15676465]
[1739463818757,0.01776359,95686.0,95685.0,6.5e-07]
[1739463818993,0.00968566,95686.0,95685.0,6.5e-07]
[1739463819190,0.156757,95689.0,95685.0,6.5e-07]
[1739463819403,0.00607793,95688.0,95685.0,0.00200065]
[1739463819607,0.00607793,95688.0,95685.0,0.00100065]
[1739463820044,0.156762,95687.0,95685.0,0.00100065]
[1739463820206,0.16643713,95687.0,95685.0,6.5e-07]
[1739463820586,0.00607793,95686.0,95685.0,0.00200065]
[1739463820980,0.00607793,95686.0,95685.0,0.15876465]
[1739463821183,0.00967613,95687.0,95686.0,0.156762]
[1739463821631,0.00022408,95691.0,95685.0,0.00200065]
[1739463821865,0.00022408,95691.0,95686.0,0.156762]
[1739463822012,0.00022408,95691.0,95685.0,0.00100065]
[1739463822208,0.156762,95686.0,95685.0,0.00400065]
[1739463822410,0.156762,95686.0,95685.0,0.00100065]
[1739463822610,0.156762,95686.0,95685.0,6.5e-07]
[1739463822837,0.156762,95686.0,95685.0,0.00400065]
[1739463822838,0.17260112,95686.0,95685.0,0.00400065]
[1739463823044,0.17260112,95686.0,95685.0,0.00100065]
[1739463823379,0.17260112,95686.0,95685.0,0.00300065]
[1739463823616,0.17260112,95686.0,95685.0,0.00100065]
[1739463823970,0.17260112,95686.0,95685.0,0.00300065]
[1739463824774,0.17260112,95686.0,95685.0,0.00200065]
[1739463825181,0.01583912,95686.0,95685.0,0.00100065]
[1739463825414,0.17260112,95686.0,95685.0,0.00400065]
[1739463825609,0.17260112,95686.0,95685.0,0.00300065]
[1739463825819,0.17260112,95686.0,95685.0,6.5e-07]
[1739463825993,0.17260112,95686.0,95685.0,0.00400065]
[1739463826189,0.17260112,95686.0,95685.0,0.00100065]
[1739463826389,0.01583912,95686.0,95685.0,6.5e-07]
[1739463826614,0.01583912,95686.0,95685.0,0.00300065]
[1739463826812,0.01583912,95686.0,95685.0,0.00100065]
[1739463827079,0.17260112,95686.0,95685.0,0.00100065]
[1739463828047,0.17260112,95686.0,95685.0,6.5e-07]
[1739463828584,0.01583912,95686.0,95685.0,0.00100065]
[1739463828799,0.01583912,95686.0,95685.0,6.5e-07]
[1739463829023,0.17260112,95686.0,95685.0,6.5e-07]
[1739463829227,0.32360112,95686.0,95685.0,6.5e-07]
[1739463829428,0.36890112,95686.0,95685.0,6.5e-07]
[1739463829626,0.37903688,95686.0,95685.0,0.00300065]
[1739463829985,0.37903688,95686.0,95685.0,0.00100065]
[1739463830107,0.37903688,95686.0,95685.0,0.00400065]
[1739463830545,0.39451028,95686.0,95685.0,0.00400065]
[1739463831185,0.39451028,95686.0,95685.0,0.00300065]
[1739463831571,0.39551028,95686.0,95685.0,0.00300065]
[1739463831950,0.39551028,95686.0,95685.0,6.5e-07]
[1739463832380,0.18907452,95686.0,95685.0,6.5e-07]
[1739463832872,0.18929818,95686.0,95685.0,6.5e-07]
[1739463833073,0.17282478,95686.0,95685.0,6.5e-07]
[1739463833636,0.17282478,95686.0,95685.0,0.00200065]
[1739463834465,0.19582478,95686.0,95685.0,0.00200065]
[1739463834833,0.44069818,95686.0,95685.0,0.00200065]
[1739463835437,0.44069818,95686.0,95685.0,0.00300065]
[1739463835574,0.44069818,95686.0,95685.0,0.00100065]
[1739463835796,0.44069818,95686.0,95685.0,6.5e-07]
[1739463836022,0.44169818,95686.0,95685.0,6.5e-07]
[1739463837476,0.42622478,95686.0,95685.0,6.5e-07]
[1739463839954,0.32382478,95686.0,95685.0,6.5e-07]
[1739463840779,0.34682478,95686.0,95685.0,6.5e-07]
[1739463841892,0.49742843,95686.0,95685.0,6.5e-07]
[1739463842092,0.49642843,95686.0,95685.0,6.5e-07]
[1739463842298,0.50842843,95686.0,95685.0,6.5e-07]
[1739463842514,0.50342843,95686.0,95685.0,6.5e-07]
[1739463842698,0.49642843,95686.0,95685.0,6.5e-07]
[1739463843147,0.50142843,95686.0,95685.0,6.5e-07]
[1739463843331,0.58472843,95686.0,95685.0,6.5e-07]
[1739463844013,0.59472843,95686.0,95685.0,6.5e-07]
[1739463844214,0.434685,95672.0,95671.0,0.0004]
[1739463844416,0.46379104,95672.0,95671.0,0.00053189]
[1739463844839,0.47346662,95672.0,95671.0,0.00053189]
[1739463845390,0.57597027,95672.0,95671.0,0.00053189]
[1739463845542,0.58597027,95672.0,95671.0,8.9e-07]
[1739463845747,0.59297027,95672.0,95671.0,8.9e-07]
[1739463845952,0.59897027,95672.0,95671.0,8.9e-07]
[1739463846161,0.61259511,95672.0,95671.0,8.9e-07]
[1739463846402,0.61859511,95672.0,95671.0,8.9e-07]
[1739463846610,0.51309146,95672.0,95671.0,8.9e-07]
[1739463846767,0.50109146,95672.0,95671.0,8.9e-07]
[1739463846979,0.50709146,95672.0,95671.0,8.9e-07]
[1739463847824,0.37416662,95672.0,95671.0,8.9e-07]
[1739463848292,0.37516662,95672.0,95671.0,8.9e-07]
[1739463848705,0.37316662,95672.0,95671.0,8.9e-07]
[1739463848911,0.36816662,95672.0,95671.0,8.9e-07]
[1739463849115,0.38016662,95672.0,95671.0,8.9e-07]
[1739463849590,0.36816662,95672.0,95671.0,8.9e-07]
[1739463849839,0.37316662,95672.0,95671.0,8.9e-07]
[1739463850104,0.36149104,95672.0,95671.0,8.9e-07]
[1739463851101,0.35849104,95672.0,95671.0,8.9e-07]
[1739463851588,0.36649104,95672.0,95671.0,8.9e-07]
[1739463852038,0.36449104,95672.0,95671.0,8.9e-07]
[1739463852303,0.36249104,95672.0,95671.0,8.9e-07]
[1739463852810,0.36049104,95672.0,95671.0,8.9e-07]
[1739463853071,0.36349104,95672.0,95671.0,8.9e-07]
[1739463854053,0.31789104,95672.0,95671.0,8.9e-07]
[1739463854266,0.16489104,95672.0,95671.0,8.9e-07]
[1739463854537,0.16589104,95672.0,95671.0,8.9e-07]
[1739463854994,0.16289104,95672.0,95671.0,8.9e-07]
[1739463855423,0.16289104,95672.0,95671.0,0.00100089]
[1739463857357,0.16289104,95672.0,95671.0,0.00110739]
[1739463857556,0.16489104,95672.0,95671.0,0.00010739]
[1739463857993,0.16589104,95672.0,95671.0,0.00010739]
[1739463858206,0.16389104,95672.0,95671.0,0.00010739]
[1739463858391,0.16489104,95672.0,95671.0,0.00010739]
[1739463859382,0.16689104,95672.0,95671.0,0.00010739]
[1739463859730,0.16489104,95672.0,95671.0,0.00010739]
[1739463859908,0.00810604,95672.0,95671.0,0.00010739]
[1739463860489,0.16289104,95672.0,95671.0,0.00010739]
[1739463860901,0.16289104,95672.0,95671.0,0.00110739]
[1739463861623,0.00610604,95672.0,95671.0,0.00110739]
[1739463861760,0.16289104,95672.0,95671.0,0.00110739]
[1739463866514,0.00610604,95672.0,95671.0,0.00110739]
[1739463866689,0.00610604,95672.0,95671.0,0.26039804]
[1739463866921,0.00610604,95672.0,95671.0,0.10361104]
[1739463867331,0.00600116,95672.0,95671.0,0.10361104]
[1739463867535,0.00600116,95672.0,95671.0,0.26039804]
[1739463867935,4.0,95680.0,95679.0,0.156774]
[1739463868167,4.0,95680.0,95674.0,0.15678]
[1739463868345,4.0,95680.0,95675.0,0.10250365]
[1739463869319,4.156772,95680.0,95675.0,0.10250365]
[1739463869514,4.0,95680.0,95675.0,0.10250365]
[1739463869729,0.00022366,95672.0,95671.0,0.00010739]
[1739463869951,0.00022366,95672.0,95671.0,0.25939804]
[1739463870284,0.00022366,95672.0,95671.0,0.10261104]
[1739463870845,0.00022366,95672.0,95671.0,0.25939804]
[1739463871046,0.00022366,95672.0,95671.0,0.26039804]
[1739463871470,0.00022366,95672.0,95671.0,0.10261104]
[1739463871672,0.00022366,95672.0,95671.0,0.10461104]
[1739463871922,0.00022366,95672.0,95671.0,0.10561104]
[1739463872902,0.00022366,95672.0,95671.0,0.26239804]
[1739463876728,0.00022366,95672.0,95671.0,0.34259804]
[1739463878688,0.00022366,95672.0,95671.0,0.49259804]
[1739463878807,0.00022366,95672.0,95671.0,0.57013304]
[1739463879714,0.00022366,95672.0,95671.0,0.56913304]
[1739463880823,6.6e-07,95672.0,95671.0,0.58013304]
[1739463882125,3.95819466,95680.0,95677.0,0.01]
[1739463882330,3.89548566,95680.0,95679.0,0.48657765]
[1739463882741,3.89548566,95680.0,95679.0,0.5190795]
[1739463883352,3.89548566,95680.0,95679.0,0.48657765]
[1739463883509,3.89648566,95680.0,95679.0,0.48657765]
[1739463883711,3.89548566,95680.0,95679.0,0.48657765]
[1739463883897,3.89648566,95680.0,95679.0,0.49057765]
[1739463884100,3.89748566,95680.0,95679.0,0.49657765]
[1739463887459,3.89748566,95680.0,95679.0,0.51768831]
[1739463888099,3.89748566,95680.0,95679.0,0.49657765]
[1739463891380,3.89748566,95680.0,95679.0,0.41927765]
[1739463891932,3.89748566,95680.0,95679.0,0.26927765]
[1739463892693,3.89748566,95680.0,95679.0,0.26938415]
[1739463893329,3.89770932,95680.0,95679.0,0.26938415]
[1739463893930,3.89770932,95680.0,95679.0,0.30187902]
[1739463894291,3.90406734,95680.0,95679.0,0.30187902]
[1739463894692,3.90406734,95680.0,95679.0,0.45187902]
[1739463894898,3.86226134,95680.0,95679.0,0.54388415]
[1739463895308,3.86226134,95680.0,95679.0,0.57638747]
[1739463896897,3.61272264,95680.0,95679.0,0.54388415]
[1739463897759,3.48853344,95680.0,95679.0,0.57688415]
[1739463897991,3.40492144,95680.0,95679.0,0.57688415]
[1739463898190,3.38401844,95680.0,95679.0,1.11208415]
[1739463898420,3.35638844,95680.0,95679.0,1.15458538]
[1739463898950,3.25187344,95680.0,95679.0,1.15458538]
[1739463901090,3.25187344,95680.0,95679.0,1.12208415]
[1739463901690,3.25187344,95680.0,95679.0,1.15460776]
[1739463901926,3.25187344,95680.0,95679.0,1.47840776]
[1739463902636,3.04815965,95680.0,95679.0,1.47840776]
[1739463902836,3.02725665,95680.0,95679.0,1.47840776]
[1739463903194,2.68971643,95680.0,95679.0,1.47840776]
[1739463903395,2.64107099,95680.0,95679.0,1.47840776]
[1739463903627,2.61046463,95680.0,95679.0,1.47840776]
[1739463903832,2.1118461,95680.0,95679.0,1.47840776]
[1739463904035,1.77395816,95680.0,95679.0,1.48376783]
[1739463904234,1.18841057,95680.0,95679.0,1.43846783]
[1739463904409,0.37194904,95680.0,95679.0,1.37216783]
[1739463904611,0.29737288,95680.0,95679.0,1.37216783]
[1739463904814,0.20402715,95680.0,95679.0,1.36616783]
[1739463905009,0.00022387,95728.0,95714.0,0.01]
[1739463905211,0.00022387,95728.0,95727.0,0.40919865]
[1739463906250,0.0002883,95728.0,95727.0,0.42017851]
[1739463906449,0.0012883,95728.0,95727.0,0.42717851]
[1739463907644,0.0012883,95728.0,95727.0,0.43217851]
[1739463910744,0.0770883,95728.0,95727.0,0.27548351]
[1739463910959,0.1248883,95728.0,95727.0,0.12548351]
[1739463911176,0.1248883,95728.0,95727.0,0.11450365]
[1739463911990,0.1238883,95728.0,95727.0,0.10250365]
[1739463912194,0.1238883,95728.0,95727.0,0.10450365]
[1739463912412,0.1238883,95728.0,95727.0,0.10650365]
[1739463912818,0.1238883,95728.0,95727.0,0.10450365]
[1739463912968,0.13060443,95728.0,95727.0,0.10450365]
[1739463913167,0.1238883,95728.0,95727.0,0.10850365]
[1739463913484,0.1238883,95728.0,95727.0,0.10650365]
[1739463913678,0.2805813,95728.0,95727.0,0.10650365]
[1739463913886,0.2805813,95728.0,95727.0,0.008]
[1739463913887,0.28729743,95728.0,95727.0,0.008]
[1739463914118,0.28729743,95728.0,95727.0,0.004]
[1739463914315,0.2856184,95728.0,95727.0,0.004]
[1739463914430,0.2856184,95728.0,95727.0,0.002]
[1739463914639,0.28557931,95728.0,95727.0,0.002]
[1739463914844,0.28557931,95728.0,95727.0,0.004]
[1739463915061,0.1267,95721.0,95691.0,0.08339458]
[1739463915315,0.00528631,95728.0,95691.0,0.08339458]
[1739463915316,0.0771,95709.0,95705.0,0.10250365]
[1739463915754,0.00656401,95708.0,95705.0,0.10250365]
[1739463916206,0.0771,95709.0,95705.0,0.10250365]
[1739463916450,0.156726,95708.0,95705.0,0.10250365]
[1739463916681,0.0778,95707.0,95705.0,0.10250365]
[1739463916901,0.280229,95706.0,95705.0,0.10250365]
[1739463917102,0.28676988,95706.0,95705.0,0.10250365]
[1739463917321,0.13004088,95706.0,95705.0,0.10250365]
[1739463918099,0.28676988,95706.0,95705.0,0.10750365]
[1739463918310,0.28676988,95706.0,95705.0,0.10250365]
[1739463918470,0.28676988,95706.0,95705.0,0.004]
[1739463918668,0.28676988,95706.0,95705.0,0.006]
[1739463918897,0.13004088,95706.0,95705.0,0.10250365]
[1739463919336,0.13004088,95706.0,95705.0,0.10350365]
[1739463919736,0.280229,95706.0,95705.0,0.10250365]
[1739463919947,0.28676988,95706.0,95705.0,0.10450365]
[1739463920234,0.28676988,95706.0,95705.0,0.10550365]
[1739463920383,0.28676988,95706.0,95705.0,0.10450365]
[1739463920791,0.28676988,95706.0,95705.0,0.006]
[1739463920991,0.28676988,95706.0,95705.0,0.002]
[1739463921193,0.156745,95697.0,95691.0,0.08339458]
[1739463921399,0.156746,95696.0,95692.0,0.10250365]
[1739463921579,0.0797,95695.0,95692.0,0.10250365]
[1739463921780,0.08624088,95695.0,95692.0,0.10250365]
[1739463921986,0.24298988,95695.0,95692.0,0.10250365]
[1739463922183,0.233051,95693.0,95692.0,0.10250365]
[1739463922397,0.0763,95693.0,95692.0,0.10250365]
[1739463922967,0.08284088,95693.0,95692.0,0.10250365]
[1739463923244,0.08284088,95693.0,95692.0,0.10450365]
[1739463923600,0.08284088,95693.0,95692.0,0.10550365]
[1739463923804,0.08284088,95693.0,95692.0,0.10450365]
[1739463924906,0.08284088,95693.0,95692.0,0.10350365]
[1739463925370,0.08284088,95693.0,95692.0,0.10550365]
[1739463926318,0.23959188,95693.0,95692.0,0.10550365]
[1739463927001,0.08284088,95693.0,95692.0,0.10550365]
[1739463927907,0.23959188,95693.0,95692.0,0.10550365]
[1739463928109,0.28779188,95693.0,95692.0,0.10550365]
[1739463928328,0.28779188,95693.0,95692.0,0.003]
[1739463929010,0.28779188,95693.0,95692.0,0.00322365]
[1739463930861,0.29212628,95693.0,95679.0,0.0001065]
[1739463931202,0.283472,95680.0,95679.0,0.0001065]
[1739463931820,0.28980277,95680.0,95679.0,0.0001065]
[1739463932787,0.31070461,95680.0,95679.0,0.0011065]
[1739463934039,0.31070461,95680.0,95679.0,0.0021065]
[1739463934445,0.31070461,95680.0,95679.0,0.0011065]
[1739463934642,0.31070461,95680.0,95679.0,0.0021065]
[1739463935691,0.31070461,95680.0,95679.0,0.0011065]
[1739463936345,0.31070461,95680.0,95679.0,0.0001065]
[1739463936695,0.31070461,95680.0,95679.0,0.0021065]
[1739463938192,0.31070461,95680.0,95679.0,0.0011065]
[1739463938407,0.31070461,95680.0,95679.0,0.0021065]
[1739463938767,0.46070461,95680.0,95679.0,0.0021065]
[1739463938969,0.46070461,95680.0,95671.0,0.0001065]
[1739463938970,0.438485,95672.0,95671.0,0.0001065]
[1739463939401,0.44467415,95672.0,95671.0,0.0001065]
[1739463940543,0.45426061,95672.0,95671.0,0.0001065]
[1739463940659,0.45626061,95672.0,95671.0,0.0001065]
[1739463941062,0.45926061,95672.0,95671.0,0.0001065]
[1739463941474,0.45726061,95672.0,95671.0,0.0001065]
[1739463941677,0.46026061,95672.0,95671.0,0.0001065]
[1739463942246,0.45726061,95672.0,95671.0,0.0001065]
[1739463942651,0.46026061,95672.0,95671.0,0.0001065]
[1739463943073,0.45426061,95672.0,95671.0,0.0001065]
[1739463943275,0.45626061,95672.0,95671.0,0.0001065]
[1739463943498,0.45826061,95672.0,95671.0,0.0001065]
[1739463946053,0.45826061,95672.0,95645.0,0.08339458]
[1739463946054,0.156828,95646.0,95645.0,0.08339458]
[1739463946307,0.281528,95646.0,95645.0,0.18589823]
[1739463946556,0.281528,95646.0,95645.0,0.10250365]
[1739463946747,0.28771715,95646.0,95645.0,0.10250365]
[1739463947307,0.28771715,95646.0,95645.0,0.10650365]
[1739463947508,0.28771715,95646.0,95645.0,0.10450365]
[1739463947705,0.28771715,95646.0,95645.0,0.002]
[1739463948670,0.28771715,95646.0,95645.0,0.003]
[1739463948868,0.31797013,95646.0,95645.0,0.007]
[1739463949836,0.30837175,95646.0,95645.0,0.007]
[1739463952750,0.45837175,95646.0,95645.0,0.007]
[1739463952954,0.46797518,95646.0,95645.0,0.003]
[1739463953293,0.46797518,95646.0,95645.0,0.0001065]
[1739463953639,0.49097518,95646.0,95645.0,0.0001065]
[1739463953863,0.49097518,95646.0,95645.0,0.0011065]
[1739463954087,0.49097518,95646.0,95645.0,0.0001065]
[1739463954304,0.284277,95616.0,95615.0,0.0001065]
[1739463954545,0.29021493,95616.0,95615.0,0.00054772]
[1739463954752,0.30099616,95616.0,95615.0,0.00054772]
[1739463955371,0.31098338,95616.0,95615.0,0.00054772]
[1739463955588,0.4719337,95616.0,95615.0,0.00054772]
[1739463955796,0.48153713,95616.0,95615.0,0.00354772]
[1739463956009,0.156898,95603.0,95602.0,1e-08]
[1739463956211,0.287598,95603.0,95602.0,6.453e-05]
[1739463956414,0.32275858,95603.0,95602.0,6.453e-05]
[1739463957049,0.35988885,95603.0,95602.0,6.453e-05]
[1739463957288,0.38288885,95603.0,95602.0,6.453e-05]
[1739463957748,0.35988885,95603.0,95602.0,6.453e-05]
[1739463958500,0.37521583,95603.0,95602.0,6.453e-05]
[1739463958722,0.156902,95601.0,95600.0,1e-08]
[1739463958938,0.26457102,95601.0,95600.0,0.0001324]
[1739463959079,0.27022488,95601.0,95600.0,0.0001324]
[1739463959283,0.29775172,95601.0,95600.0,0.0001324]
[1739463959732,0.31839875,95601.0,95600.0,0.0001324]
[1739463960133,0.32800218,95601.0,95600.0,0.0001324]
[1739463960306,0.30047534,95601.0,95600.0,0.0001324]
[1739463961009,0.31680632,95601.0,95600.0,0.0001324]
[1739463961211,0.52360218,95601.0,95600.0,0.0001324]
[1739463962049,0.49607534,95601.0,95600.0,0.0001324]
[1739463962287,0.48980632,95601.0,95600.0,0.0001324]
[1739463962476,0.49220383,95601.0,95596.0,0.00022365]
[1739463962626,0.457408,95597.0,95596.0,0.00035609]
[1739463962829,0.51420386,95597.0,95596.0,0.00035609]
[1739463963141,0.51985477,95597.0,95596.0,0.00035609]